bitfinex-derivatives/quotes_BTCF0:USTF0_20250827
["timestamp","ask_amount","ask_price","bid_price","bid_amount"]
[1756258266025,0.83731196,111360.0,111350.0,0.50682]
[1756258266230,0.84030926,111360.0,111350.0,0.5966185]
[1756258266727,0.21228032,111360.0,111350.0,0.5966185]
[1756258267026,0.84030926,111360.0,111350.0,0.5966185]
[1756258267628,1.62031886,111360.0,111350.0,0.5966185]
[1756258268631,0.75051886,111360.0,111350.0,0.5966185]
[1756258268824,0.12248992,111360.0,111350.0,0.5966185]
[1756258269227,0.12248992,111360.0,111350.0,1.22464744]
[1756258269431,0.07740649,111360.0,111350.0,1.22464744]
[1756258271536,0.07740649,111360.0,111350.0,2.09372744]
[1756258271736,0.005,111360.0,111350.0,2.09372744]
[1756258271933,0.002,111360.0,111350.0,1.4656985]
[1756258272140,0.003,111360.0,111350.0,2.09372744]
[1756258272439,0.001,111360.0,111350.0,0.5966185]
[1756258272631,0.002,111360.0,111350.0,0.5966185]
[1756258273530,1.65246208,111370.0,111360.0,0.0897904]
[1756258273731,1.65246208,111370.0,111360.0,0.5975404]
[1756258274933,1.72307367,111370.0,111360.0,0.5975404]
[1756258275241,1.72407367,111370.0,111360.0,0.5975404]
[1756258275835,1.72507367,111370.0,111360.0,0.5975404]
[1756258284147,1.63529127,111370.0,111360.0,0.5975404]
[1756258284849,1.72507367,111370.0,111360.0,0.5975404]
[1756258286851,0.85583357,111370.0,111360.0,0.5975404]
[1756258287047,1.71975357,111370.0,111360.0,0.5975404]
[1756258289947,1.54462761,111370.0,111360.0,0.5975404]
[1756258292355,1.58941259,111370.0,111360.0,0.5975404]
[1756258294146,1.66249497,111370.0,111360.0,0.5975404]
[1756258295152,1.66249497,111370.0,111360.0,0.50775]
[1756258295455,1.66249497,111370.0,111360.0,0.38793]
[1756258295957,1.66249497,111370.0,111360.0,0.4054]
[1756258296257,1.66249497,111370.0,111360.0,0.5171904]
[1756258296755,1.66249497,111370.0,111360.0,0.5514404]
[1756258296957,1.66345497,111370.0,111360.0,0.5514404]
[1756258297258,1.66345497,111370.0,111360.0,0.5171904]
[1756258297760,1.03542603,111370.0,111360.0,0.5496504]
[1756258297951,1.66345497,111370.0,111360.0,0.5685604]
[1756258298652,1.66345497,111370.0,111360.0,0.5361004]
[1756258299856,1.66345497,111370.0,111360.0,0.5685604]
[1756258300057,1.03542603,111370.0,111360.0,0.5965704]
[1756258300257,1.66345497,111370.0,111360.0,0.5965704]
[1756258300760,1.66345497,111370.0,111360.0,0.4274]
[1756258301068,1.66345497,111370.0,111360.0,0.02713]
[1756258302661,0.0903891,111350.0,111340.0,0.64097176]
[1756258302962,1.57590804,111350.0,111340.0,0.62459466]
[1756258303164,1.57590804,111350.0,111340.0,0.55116466]
[1756258303464,1.57590804,111350.0,111340.0,0.06989]
[1756258303664,1.57590804,111350.0,111340.0,0.10235]
[1756258303865,1.57590804,111350.0,111340.0,0.10435]
[1756258304061,1.48514894,111350.0,111340.0,0.1519]
[1756258304264,1.38446514,111350.0,111340.0,0.1519]
[1756258304466,1.47426424,111350.0,111340.0,0.1519]
[1756258304966,1.47426424,111350.0,111340.0,0.12389]
[1756258305164,1.47426424,111350.0,111340.0,0.12489]
[1756258305659,1.47426424,111350.0,111340.0,0.12289]
[1756258305864,1.47426424,111350.0,111340.0,0.09043]
[1756258306066,1.47426424,111350.0,111340.0,0.08943]
[1756258306260,1.47426424,111350.0,111340.0,0.06989]
[1756258306466,1.47426424,111350.0,111340.0,0.02892]
[1756258307864,0.0898069,111340.0,111330.0,0.40741]
[1756258308269,0.71783584,111340.0,111330.0,0.40741]
[1756258308670,0.71783584,111340.0,111330.0,0.43069]
[1756258309568,0.71783584,111340.0,111330.0,0.45123]
[1756258309771,0.71783584,111340.0,111330.0,0.5117]
[1756258311474,0.0898069,111340.0,111330.0,0.6015149]
[1756258311770,0.71783584,111340.0,111330.0,0.6015149]
[1756258319076,0.71783584,111340.0,111330.0,0.5117]
[1756258319980,0.71863584,111340.0,111330.0,0.5117]
[1756258325683,0.71863584,111340.0,111330.0,0.6015149]
[1756258329284,1.03208126,111340.0,111330.0,0.6015149]
[1756258330088,0.0906069,111340.0,111330.0,0.6015149]
[1756258330591,1.03208126,111340.0,111330.0,0.6015149]
[1756258332680,0.0906069,111340.0,111330.0,0.6015149]
[1756258332881,1.03208126,111340.0,111330.0,0.6015149]
[1756258334790,0.0906069,111340.0,111330.0,0.6015149]
[1756258334989,1.03208126,111340.0,111330.0,0.6015149]
[1756258336684,1.50281844,111340.0,111330.0,0.07089]
[1756258336989,1.28208126,111340.0,111330.0,0.02992]
[1756258337184,1.75281844,111340.0,111330.0,0.02992]
[1756258337494,1.32927696,111340.0,111330.0,0.02992]
[1756258337990,2.17555696,111340.0,111330.0,0.02992]
[1756258339198,1.32927696,111340.0,111330.0,0.02992]
[1756258339394,1.81439696,111340.0,111330.0,0.06943]
[1756258339699,2.17519696,111340.0,111330.0,0.10347]
[1756258343707,1.81439696,111340.0,111330.0,0.10347]
[1756258343905,2.17519696,111340.0,111330.0,0.06943]
[1756258344208,2.17519696,111340.0,111330.0,0.001]
[1756258344506,2.17676063,111340.0,111330.0,0.00092]
[1756258344700,2.53756063,111340.0,111330.0,0.00092]
[1756258345805,3.16543069,111340.0,111330.0,0.00092]
[1756258346005,1.90969057,111340.0,111330.0,0.00092]
[1756258346199,0.0898391,111300.0,111290.0,0.5096711]
[1756258346405,1.56354916,111300.0,111290.0,0.5437111]
[1756258346607,1.56354916,111300.0,111290.0,0.45387]
[1756258346809,1.56354916,111300.0,111290.0,0.48103]
[1756258347508,1.56354916,111300.0,111290.0,0.48503]
[1756258347709,1.56354916,111300.0,111290.0,0.49103]
[1756258348508,1.60920324,111300.0,111290.0,0.6108271]
[1756258349008,1.68172787,111300.0,111290.0,0.6108271]
[1756258351402,1.68172787,111300.0,111290.0,0.52098]
[1756258352100,1.68172787,111300.0,111290.0,0.45978]
[1756258352300,1.68172787,111300.0,111290.0,0.70978]
[1756258352511,1.68172787,111300.0,111290.0,0.45978]
[1756258353311,1.68172787,111300.0,111290.0,0.49382]
[1756258353508,1.68172787,111300.0,111290.0,0.07946]
[1756258353906,2.04252787,111300.0,111290.0,0.03995]
[1756258355008,2.04252787,111300.0,111290.0,0.03595]
[1756258355203,2.04252787,111300.0,111290.0,0.006]
[1756258355405,2.04252787,111300.0,111290.0,0.03595]
[1756258355906,2.04252787,111300.0,111290.0,0.02995]
[1756258356307,0.0898552,111280.0,111270.0,0.6008369]
[1756258356509,1.56320526,111280.0,111270.0,0.6008369]
[1756258357510,1.56320526,111280.0,111270.0,0.6028369]
[1756258358104,1.56320526,111280.0,111270.0,0.6058369]
[1756258358910,0.0898552,111280.0,111270.0,0.6058369]
[1756258359111,0.84556,111280.0,111270.0,0.5757669]
[1756258359406,0.9354143,111280.0,111270.0,0.5757669]
[1756258359611,0.9354143,111280.0,111270.0,0.6033569]
[1756258361511,1.56328436,111280.0,111270.0,0.6033569]
[1756258362010,0.9354143,111280.0,111270.0,0.6033569]
[1756258362211,1.56328436,111280.0,111270.0,0.6033569]
[1756258363309,0.9354143,111280.0,111270.0,0.6033569]
[1756258363505,0.0898543,111280.0,111270.0,0.6033569]
[1756258363712,0.9354543,111280.0,111270.0,0.6033569]
[1756258363913,1.56332436,111280.0,111270.0,0.6033569]
[1756258364508,0.9354543,111280.0,111270.0,0.6033569]
[1756258364705,1.56332136,111290.0,111280.0,0.2384638]
[1756258364901,1.56332136,111290.0,111280.0,0.5992638]
[1756258366612,1.56332136,111290.0,111280.0,0.6012638]
[1756258366814,1.56332136,111290.0,111280.0,0.6022638]
[1756258367112,0.9354513,111290.0,111280.0,0.6022638]
[1756258367313,1.56332136,111290.0,111280.0,0.6022638]
[1756258369412,1.56332136,111290.0,111280.0,0.51241]
[1756258370614,0.9354513,111290.0,111280.0,0.51241]
[1756258370812,1.56332136,111290.0,111280.0,0.51241]
[1756258373517,0.71772136,111290.0,111280.0,0.51241]
[1756258373720,1.56328136,111290.0,111280.0,0.51241]
[1756258374718,0.83589407,111300.0,111290.0,0.2186764]
[1756258375023,1.05358401,111300.0,111290.0,0.5992564]
[1756258376819,1.68145407,111300.0,111290.0,0.5992564]
[1756258381523,1.05358401,111300.0,111290.0,0.5992564]
[1756258381720,1.68145407,111300.0,111290.0,0.5992564]
[1756258382720,1.68137407,111300.0,111290.0,0.5992564]
[1756258383413,1.05350401,111300.0,111290.0,0.5992564]
[1756258386123,1.05350401,111300.0,111290.0,1.22712646]
[1756258386624,1.05350401,111300.0,111290.0,0.5992564]
[1756258388526,1.68137407,111300.0,111290.0,0.5992564]
[1756258391727,1.05350401,111300.0,111290.0,0.5992564]
[1756258392728,0.20802401,111300.0,111290.0,1.22712646]
[1756258392930,0.07252463,111300.0,111290.0,1.47712646]
[1756258393127,0.9548341,111310.0,111300.0,0.1491881]
[1756258393432,0.9548341,111310.0,111300.0,1.22597816]
[1756258393433,0.91020116,111310.0,111300.0,1.22597816]
[1756258394631,0.06496116,111310.0,111300.0,1.22597816]
[1756258394835,0.13754388,111310.0,111300.0,1.47597816]
[1756258395028,0.13754388,111310.0,111300.0,2.32117816]
[1756258395734,0.13854388,111310.0,111300.0,2.32117816]
[1756258399036,0.22837398,111310.0,111300.0,1.6931881]
[1756258399233,0.85624404,111310.0,111300.0,0.5981082]
[1756258401535,0.13854388,111310.0,111300.0,0.5981082]
[1756258402737,0.22837398,111310.0,111300.0,0.5981082]
[1756258403036,0.85624404,111310.0,111300.0,0.5654182]
[1756258403229,0.85624404,111310.0,111300.0,0.5981082]
[1756258407451,0.13854388,111310.0,111300.0,1.22597826]
[1756258407850,0.13854388,111310.0,111300.0,0.5981082]
[1756258408151,0.22837408,111310.0,111300.0,1.22597826]
[1756258408552,0.22837408,111310.0,111300.0,0.5981082]
[1756258410245,0.85624414,111310.0,111300.0,0.50827]
[1756258412042,1.10624414,111310.0,111300.0,0.44909]
[1756258412242,1.46704414,111310.0,111300.0,0.06974]
[1756258412441,1.46704414,111310.0,111300.0,0.04699]
[1756258416755,0.47837408,111310.0,111300.0,0.10243]
[1756258416955,1.10624414,111310.0,111300.0,0.10243]
[1756258417654,1.10624414,111310.0,111300.0,0.14626]
[1756258420659,1.10624414,111310.0,111300.0,0.12098]
[1756258421361,0.92342587,111310.0,111300.0,0.12098]
[1756258421562,0.92342587,111310.0,111300.0,0.14626]
[1756258421860,0.92342587,111310.0,111300.0,0.12098]
[1756258422960,0.9685599,111310.0,111300.0,0.12098]
[1756258423160,1.04058214,111310.0,111300.0,0.14626]
[1756258423362,1.04058214,111310.0,111300.0,0.50706]
[1756258424560,1.04058214,111310.0,111300.0,0.5642082]
[1756258424759,1.88494214,111310.0,111300.0,0.5973082]
[1756258428967,0.07202224,111310.0,111300.0,1.47517826]
[1756258429266,0.84428,111320.0,111310.0,0.2329202]
[1756258429468,0.9341021,111320.0,111310.0,1.22159026]
[1756258430362,0.97902505,111320.0,111310.0,0.5937202]
[1756258430571,0.97902505,111320.0,111310.0,0.5947202]
[1756258431869,1.05249236,111320.0,111310.0,0.5947202]
[1756258432070,1.05249236,111320.0,111310.0,0.5937202]
[1756258432569,1.68036242,111320.0,111310.0,0.5937202]
[1756258433170,1.05249236,111320.0,111310.0,0.5937202]
[1756258435366,1.05249236,111320.0,111310.0,1.22159026]
[1756258441678,1.05249236,111320.0,111310.0,0.5947202]
[1756258442280,0.96267026,111320.0,111310.0,1.22259026]
[1756258442575,0.11839026,111320.0,111310.0,1.58259026]
[1756258442780,0.9334942,111330.0,111320.0,0.2329121]
[1756258442980,0.9334942,111330.0,111320.0,1.22158216]
[1756258444482,0.9334942,111330.0,111320.0,0.5937121]
[1756258445384,1.00704814,111330.0,111320.0,0.5937121]
[1756258446384,1.05271724,111330.0,111320.0,0.5937121]
[1756258446786,0.96278304,111330.0,111320.0,0.5937121]
[1756258447585,0.96278304,111330.0,111320.0,1.22158216]
[1756258450489,0.7769456,111330.0,111320.0,1.22158216]
[1756258454996,0.85052846,111330.0,111320.0,1.22158216]
[1756258455497,0.89657375,111330.0,111320.0,1.22158216]
[1756258461306,1.36727368,111330.0,111320.0,1.53511196]
[1756258461708,0.11962815,111330.0,111320.0,1.53511196]
[1756258462008,0.84284,111330.0,111320.0,1.53511196]
[1756258463202,0.84284,111330.0,111320.0,0.5937121]
[1756258463403,0.84284,111330.0,111320.0,0.5947121]
[1756258463608,0.84284,111330.0,111320.0,1.22229846]
[1756258464412,0.84284,111330.0,111320.0,0.5947121]
[1756258464606,0.84284,111330.0,111320.0,1.22229846]
[1756258465006,0.91413086,111330.0,111320.0,1.22229846]
[1756258465510,0.91413086,111330.0,111320.0,0.5947121]
[1756258465704,0.07129086,111330.0,111320.0,1.22229846]
[1756258466008,1.62636048,111340.0,111330.0,0.2370944]
[1756258466209,0.99877412,111340.0,111330.0,0.5978944]
[1756258466402,1.62636048,111340.0,111330.0,0.5978944]
[1756258467704,1.62636048,111340.0,111330.0,0.44828]
[1756258468308,1.62636048,111340.0,111330.0,0.48236]
[1756258469411,0.99877412,111340.0,111330.0,0.5978941]
[1756258469614,1.62636048,111340.0,111330.0,0.5978941]
[1756258469808,0.99877412,111340.0,111330.0,0.5978941]
[1756258470110,1.62636048,111340.0,111330.0,0.5978941]
[1756258470410,1.69660329,111340.0,111330.0,0.5978941]
[1756258473802,1.69660329,111340.0,111330.0,0.3907]
[1756258475905,1.94660329,111340.0,111330.0,0.3907]
[1756258476310,1.94660329,111340.0,111330.0,0.0299]
[1756258478609,1.94660329,111340.0,111330.0,0.04681]
[1756258478806,1.94660329,111340.0,111330.0,0.06869]
[1756258479008,1.94660329,111340.0,111330.0,0.14646]
[1756258479809,1.94660329,111340.0,111330.0,0.25958897]
[1756258480314,1.94660329,111340.0,111330.0,0.22800897]
[1756258480710,1.94660329,111340.0,111330.0,0.25958897]
[1756258483215,1.10388329,111340.0,111330.0,0.34940377]
[1756258483416,2.25952797,111340.0,111330.0,0.71020377]
[1756258484316,1.31813693,111340.0,111330.0,0.71020377]
[1756258484615,2.25952797,111340.0,111330.0,0.71020377]
[1756258485008,2.25952797,111340.0,111330.0,0.5970748]
[1756258486117,2.25952797,111340.0,111330.0,1.06777032]
[1756258486611,2.25952797,111340.0,111330.0,0.5970748]
[1756258487112,1.31813693,111340.0,111330.0,0.5970748]
[1756258487311,1.06801693,111340.0,111330.0,1.06777032]
[1756258487511,1.53871245,111340.0,111330.0,1.06777032]
[1756258488419,2.00940797,111340.0,111330.0,0.97795552]
[1756258488717,2.00940797,111340.0,111330.0,0.50726]
[1756258488912,2.00940797,111340.0,111330.0,0.5380945]
[1756258489415,2.00940797,111340.0,111330.0,0.5970745]
[1756258489718,2.00940797,111340.0,111330.0,1.06777002]
[1756258490517,2.00940797,111340.0,111330.0,0.5970745]
[1756258490720,1.06801693,111340.0,111330.0,0.5970745]
[1756258490919,2.00940797,111340.0,111330.0,0.5970745]
[1756258491317,1.69561745,111340.0,111330.0,0.5970745]
[1756258492413,1.06801693,111340.0,111330.0,0.5970745]
[1756258492618,1.69561745,111340.0,111330.0,0.5970745]
[1756258493818,0.97788523,111340.0,111330.0,0.5970745]
[1756258494017,0.13648523,111340.0,111330.0,0.5970745]
[1756258494219,0.97780523,111340.0,111330.0,1.22467502]
[1756258495122,1.06761163,111340.0,111330.0,0.5970745]
[1756258496617,1.06761163,111340.0,111330.0,1.22467502]
[1756258498118,1.06761163,111340.0,111330.0,0.5970745]
[1756258501620,0.13648523,111340.0,111330.0,1.22467502]
[1756258501825,0.97748523,111340.0,111330.0,1.22467502]
[1756258502720,0.13648523,111340.0,111330.0,1.22467502]
[1756258502926,0.09050284,111340.0,111330.0,1.47467502]
[1756258503223,0.02026003,111340.0,111330.0,2.31555502]
[1756258504723,0.88479115,111350.0,111340.0,0.2361067]
[1756258504931,0.88479115,111350.0,111340.0,1.22450722]
[1756258505629,2.80635262,111370.0,111360.0,0.0897906]
[1756258505825,3.64711262,111370.0,111360.0,0.2360906]
[1756258506323,3.64711262,111370.0,111360.0,0.02862]
[1756258506717,3.28631262,111370.0,111360.0,0.2045106]
[1756258506921,1.8179521,111370.0,111360.0,0.5968906]
[1756258507123,2.51597746,111370.0,111360.0,0.5968906]
[1756258507427,3.02637623,111370.0,111360.0,0.5968906]
[1756258507825,3.02637623,111370.0,111360.0,0.70995826]
[1756258508021,0.22777623,111370.0,111360.0,0.70995826]
[1756258508220,1.06841623,111370.0,111360.0,0.70995826]
[1756258508421,1.69601675,111370.0,111360.0,0.70995826]
[1756258508622,1.07241623,111370.0,111360.0,0.70995826]
[1756258509331,1.06841623,111370.0,111360.0,0.70995826]
[1756258512634,1.06841623,111370.0,111360.0,0.5968906]
[1756258514536,1.69601675,111370.0,111360.0,0.5968906]
[1756258515134,1.69601675,111370.0,111360.0,0.38942]
[1756258515433,1.5388994,111370.0,111360.0,0.38942]
[1756258515634,2.25938257,111370.0,111360.0,0.02862]
[1756258517440,1.94584309,111370.0,111360.0,0.02862]
[1756258518134,1.94584309,111370.0,111360.0,0.04515]
[1756258518330,1.94584309,111370.0,111360.0,0.06712]
[1756258518537,1.94584309,111370.0,111360.0,0.5177106]
[1756258518737,1.94584309,111370.0,111360.0,0.5521806]
[1756258519335,0.47777623,111370.0,111360.0,0.5521806]
[1756258519639,1.69524309,111370.0,111360.0,0.5959606]
[1756258521933,1.69524309,111370.0,111360.0,0.70902826]
[1756258522329,0.22777623,111370.0,111360.0,0.5959606]
[1756258522534,1.06769623,111370.0,111360.0,1.22338746]
[1756258522738,0.11774413,111370.0,111360.0,1.47338746]
[1756258522940,0.95766413,111370.0,111360.0,1.47338746]
[1756258523241,0.003,111370.0,111360.0,1.58645512]
[1756258523433,0.003,111370.0,111360.0,1.47338746]
[1756258524839,0.001,111370.0,111360.0,1.47338746]
[1756258525040,0.001,111370.0,111360.0,1.47438746]
[1756258525736,0.07274545,111380.0,111360.0,1.47438746]
[1756258525941,1.22275816,111390.0,111380.0,0.1465445]
[1756258526241,0.5953313,111390.0,111380.0,0.5971445]
[1756258526433,0.66794096,111390.0,111380.0,0.5971445]
[1756258527239,1.29536782,111390.0,111380.0,0.5971445]
[1756258527437,0.66794096,111390.0,111380.0,0.5971445]
[1756258527636,1.29736782,111390.0,111380.0,0.5971445]
[1756258528541,1.29836782,111390.0,111380.0,0.5971445]
[1756258529142,1.63244782,111390.0,111380.0,0.5971445]
[1756258529341,0.79280782,111390.0,111380.0,0.5971445]
[1756258529642,1.63240782,111390.0,111380.0,0.5971445]
[1756258530944,1.05046004,111390.0,111380.0,0.5971445]
[1756258531145,1.6778869,111390.0,111380.0,0.5971445]
[1756258531339,1.05046004,111390.0,111380.0,0.5971445]
[1756258531544,1.6778869,111390.0,111380.0,0.5971445]
[1756258532542,1.05046004,111390.0,111380.0,0.5971445]
[1756258532847,1.6778869,111390.0,111380.0,0.5626745]
[1756258533145,1.6778869,111390.0,111380.0,0.5971445]
[1756258535148,0.96068874,111390.0,111380.0,1.22457136]
[1756258536249,0.12108874,111390.0,111380.0,1.22457136]
[1756258537345,0.12108874,111390.0,111380.0,1.23457136]
[1756258537849,0.07560966,111390.0,111380.0,1.53457136]
[1756258538048,0.003,111390.0,111380.0,1.78457136]
[1756258538449,0.003,111390.0,111380.0,1.59457136]
[1756258538650,0.003,111390.0,111380.0,1.70736196]
[1756258539153,1.07700654,111420.0,111410.0,0.1601104]
[1756258539450,1.98951339,111420.0,111410.0,0.2339804]
[1756258541551,1.36208653,111420.0,111410.0,0.14423]
[1756258541753,1.98951339,111420.0,111410.0,0.14423]
[1756258541954,0.0897504,111410.0,111400.0,0.40667]
[1756258542153,0.71717726,111410.0,111400.0,0.39048]
[1756258542851,0.76310213,111410.0,111400.0,0.39048]
[1756258543155,0.76310213,111410.0,111400.0,0.3608]
[1756258543355,0.76310213,111410.0,111400.0,0.39048]
[1756258545057,0.76410213,111410.0,111400.0,0.39048]
[1756258545257,0.76510213,111410.0,111400.0,0.39048]
[1756258545859,0.13767527,111410.0,111400.0,0.42847]
[1756258546059,0.76510213,111410.0,111400.0,0.42847]
[1756258546759,1.12590213,111410.0,111400.0,0.02968]
[1756258547158,1.12590213,111410.0,111400.0,0.06767]
[1756258547459,1.12590213,111410.0,111400.0,0.10056]
[1756258548862,1.12590213,111410.0,111400.0,0.11974]
[1756258549161,0.49847527,111410.0,111400.0,0.14423]
[1756258549464,0.49847527,111410.0,111400.0,0.2339885]
[1756258549660,1.12590213,111410.0,111400.0,0.2339885]
[1756258551164,0.49847527,111410.0,111400.0,0.2339885]
[1756258551364,0.76510213,111410.0,111400.0,0.5947885]
[1756258551561,1.60362213,111410.0,111400.0,0.5947885]
[1756258551762,0.97619527,111410.0,111400.0,0.5947885]
[1756258552569,0.88644487,111410.0,111400.0,1.22221536]
[1756258552965,0.88644487,111410.0,111400.0,0.5947885]
[1756258553358,0.88644487,111410.0,111400.0,1.22221536]
[1756258554269,0.97619527,111410.0,111400.0,0.5947885]
[1756258554473,0.97619527,111410.0,111400.0,0.2339885]
[1756258554769,1.60362213,111410.0,111400.0,0.2339885]
[1756258554970,1.60362213,111410.0,111400.0,0.5947885]
[1756258556069,1.60362213,111410.0,111400.0,0.5374085]
[1756258557264,1.60362213,111410.0,111400.0,0.02968]
[1756258557773,0.97619527,111410.0,111400.0,0.02968]
[1756258557973,1.60362213,111410.0,111400.0,0.02968]
[1756258558174,0.97619527,111410.0,111400.0,0.02968]
[1756258558374,1.60362213,111410.0,111400.0,0.04587]
[1756258558766,1.60362213,111410.0,111400.0,0.1194385]
[1756258558968,1.60362213,111410.0,111400.0,0.2339885]
[1756258559168,0.97619527,111410.0,111400.0,0.2339885]
[1756258559469,1.60362213,111410.0,111400.0,0.2339885]
[1756258561069,1.60362213,111410.0,111400.0,0.02968]
[1756258561676,1.96442213,111410.0,111400.0,0.02968]
[1756258562179,0.0897585,111400.0,111390.0,0.02968]
[1756258562474,0.71718536,111400.0,111390.0,0.02968]
[1756258563176,0.71718536,111400.0,111390.0,0.1356365]
[1756258563475,0.0897585,111400.0,111390.0,0.5947965]
[1756258563665,0.71718536,111400.0,111390.0,0.5947965]
[1756258563969,0.71718536,111400.0,111390.0,0.14423]
[1756258564277,0.71718536,111400.0,111390.0,0.04587]
[1756258565274,0.71718536,111400.0,111390.0,0.1356366]
[1756258565572,0.71718536,111400.0,111390.0,0.2339966]
[1756258565773,0.0897585,111400.0,111390.0,0.5947966]
[1756258566070,0.71718536,111400.0,111390.0,0.02968]
[1756258566779,0.0897666,111390.0,111380.0,0.02968]
[1756258566969,1.91599346,111390.0,111380.0,0.02968]
[1756258567276,1.91599346,111390.0,111380.0,0.04587]
[1756258567874,1.93575093,111390.0,111380.0,0.02968]
[1756258568773,1.48518433,111390.0,111380.0,0.02968]
[1756258569274,1.57495093,111390.0,111380.0,0.02968]
[1756258569575,1.57495093,111390.0,111380.0,0.06881]
[1756258570472,1.57495093,111390.0,111380.0,0.02968]
[1756258571675,1.57495093,111390.0,111380.0,0.04703]
[1756258572470,1.57495093,111390.0,111380.0,0.12774]
[1756258573373,1.57495093,111390.0,111380.0,0.14647]
[1756258574178,1.57495093,111390.0,111380.0,0.02968]
[1756258574780,1.57495093,111390.0,111380.0,0.04703]
[1756258575472,1.57595093,111390.0,111380.0,0.04703]
[1756258575679,1.57695093,111390.0,111380.0,0.04703]
[1756258576776,1.57695093,111390.0,111380.0,0.06881]
[1756258577284,0.9297666,111390.0,111380.0,0.14647]
[1756258577478,1.55719346,111390.0,111380.0,0.08754]
[1756258577678,1.55719346,111390.0,111380.0,0.14647]
[1756258577881,0.9297666,111390.0,111380.0,0.14647]
[1756258578080,1.55719346,111390.0,111380.0,0.14647]
[1756258578380,1.55719346,111390.0,111380.0,0.50727]
[1756258578581,1.55619346,111390.0,111380.0,0.50727]
[1756258579581,1.55619346,111390.0,111380.0,0.14647]
[1756258580684,1.55719346,111390.0,111380.0,0.14647]
[1756258581986,0.9297666,111390.0,111380.0,0.14647]
[1756258582284,1.55719346,111390.0,111380.0,0.08754]
[1756258582483,1.55719346,111390.0,111380.0,0.12089]
[1756258582781,1.55719346,111390.0,111380.0,0.14647]
[1756258583985,1.55687346,111390.0,111380.0,0.62005709]
[1756258584884,0.9294466,111390.0,111380.0,0.62005709]
[1756258585091,1.55687346,111390.0,111380.0,0.62005709]
[1756258586884,0.9294466,111390.0,111380.0,0.62005709]
[1756258587085,1.55687346,111390.0,111380.0,0.62005709]
[1756258587285,1.55687346,111390.0,111380.0,0.50727]
[1756258587886,0.9294466,111390.0,111380.0,0.50727]
[1756258588086,1.55687346,111390.0,111380.0,0.50727]
[1756258594595,1.55687346,111390.0,111380.0,0.5970441]
[1756258595790,1.55687346,111390.0,111380.0,0.70983119]
[1756258597292,1.55687346,111390.0,111380.0,0.5970441]
[1756258597792,1.55687346,111390.0,111380.0,0.50727]
[1756258598387,0.9294466,111390.0,111380.0,0.62038589]
[1756258598592,1.55687346,111390.0,111380.0,0.62038589]
[1756258599694,1.55687346,111390.0,111380.0,0.25958589]
[1756258599992,1.55687346,111390.0,111380.0,0.62038589]
[1756258601193,1.55687346,111390.0,111380.0,0.25958589]
[1756258601393,1.55687346,111390.0,111380.0,0.62038589]
[1756258603997,0.9294466,111390.0,111380.0,0.62038589]
[1756258604198,1.55687346,111390.0,111380.0,0.62038589]
[1756258604498,0.9294466,111390.0,111380.0,0.62038589]
[1756258604997,1.55687346,111390.0,111380.0,0.62038589]
[1756258606099,1.55687346,111390.0,111380.0,0.50727]
[1756258606495,0.9294466,111390.0,111380.0,0.50727]
[1756258606795,1.55687346,111390.0,111380.0,0.50727]
[1756258607397,0.9294466,111390.0,111380.0,0.50727]
[1756258607600,1.55687346,111390.0,111380.0,0.50727]
[1756258607899,1.55687346,111390.0,111380.0,0.14647]
[1756258608488,1.55687346,111390.0,111380.0,0.2595946]
[1756258608894,1.55687346,111390.0,111380.0,0.14647]
[1756258612196,1.55687346,111390.0,111380.0,0.02968]
[1756258613097,1.55687346,111390.0,111380.0,0.06829]
[1756258613301,0.0897742,111380.0,111370.0,0.02741]
[1756258613501,1.03082774,111380.0,111370.0,0.06602]
[1756258613703,1.03082774,111380.0,111370.0,0.1405346]
[1756258614101,1.39162774,111380.0,111370.0,0.1405346]
[1756258614398,0.0897822,111370.0,111360.0,0.1405346]
[1756258614596,1.86747574,111370.0,111360.0,0.1405346]
[1756258614795,2.22827574,111370.0,111360.0,0.1405346]
[1756258615301,1.91467431,111370.0,111360.0,0.1405346]
[1756258616504,1.91467431,111370.0,111360.0,0.1415346]
[1756258617106,1.91567431,111370.0,111360.0,0.1405346]
[1756258617804,1.91667431,111370.0,111360.0,0.02741]
[1756258618708,0.0897903,111360.0,111350.0,0.1568446]
[1756258619005,0.71724241,111360.0,111350.0,0.04372]
[1756258619307,0.0897903,111360.0,111350.0,0.06602]
[1756258619604,0.71724241,111360.0,111350.0,0.06602]
[1756258619808,0.71724241,111360.0,111350.0,0.02741]
[1756258620209,1.70549452,111360.0,111350.0,0.02741]
[1756258620704,0.0897983,111350.0,111340.0,0.50528]
[1756258621008,1.55369041,111350.0,111340.0,0.6184046]
[1756258621406,1.59203031,111350.0,111340.0,0.6184046]
[1756258622008,1.59203031,111350.0,111340.0,0.6194046]
[1756258622505,0.75559031,111350.0,111340.0,0.6194046]
[1756258622712,1.59199031,111350.0,111340.0,0.6194046]
[1756258623010,1.59199031,111350.0,111340.0,0.6204046]
[1756258623212,0.9645382,111350.0,111340.0,0.6204046]
[1756258623402,1.68403675,111350.0,111340.0,0.5419446]
[1756258623603,1.68403675,111350.0,111340.0,0.1425346]
[1756258623808,1.68403675,111350.0,111340.0,0.06802]
[1756258624213,1.68403675,111350.0,111340.0,0.10231]
[1756258625617,1.68403675,111350.0,111340.0,0.14648]
[1756258626520,1.68403675,111350.0,111340.0,0.06802]
[1756258627020,1.68403675,111350.0,111340.0,0.04572]
[1756258628614,2.04483675,111350.0,111340.0,0.02941]
[1756258628821,2.29483675,111350.0,111340.0,0.002]
[1756258629518,1.66738464,111350.0,111340.0,0.002]
[1756258629724,2.29483675,111350.0,111340.0,0.03051]
[1756258630328,1.45843675,111350.0,111340.0,0.03051]
[1756258630622,2.29471675,111350.0,111340.0,0.04715]
[1756258631326,1.45843675,111350.0,111340.0,0.04715]
[1756258631517,2.29471675,111350.0,111340.0,0.04715]
[1756258633525,2.29467675,111350.0,111340.0,0.04715]
[1756258634725,2.29467675,111350.0,111340.0,0.03051]
[1756258636721,2.29467675,111350.0,111340.0,0.002]
[1756258637328,0.71725761,111340.0,111330.0,0.02851]
[1756258637529,1.07805761,111340.0,111330.0,0.02851]
[1756258638625,1.07805761,111340.0,111330.0,0.03351]
[1756258642120,0.4506055,111340.0,111330.0,0.03351]
[1756258642321,1.07805761,111340.0,111330.0,0.03351]
[1756258644027,1.91409761,111340.0,111330.0,0.05015]
[1756258644217,1.91409761,111340.0,111330.0,0.03351]
[1756258647625,1.91409761,111340.0,111330.0,0.005]
[1756258648430,1.07805761,111340.0,111330.0,0.03351]
[1756258648727,1.91401761,111340.0,111330.0,0.03351]
[1756258650029,1.91401761,111340.0,111330.0,0.05015]
[1756258650232,1.91401761,111340.0,111330.0,0.03351]
[1756258653320,2.79146972,111340.0,111330.0,0.005]
[1756258653520,0.13978119,111330.0,111320.0,0.01123711]